bitfinex/quotes_ETHUSD_20260214
["timestamp","ask_amount","ask_price","bid_price","bid_amount"]
[1771078056803,0.68322649,2073.5,2072.6,1.20720866]
[1771078057185,0.04820918,2073.6,2072.8,0.40934245]
[1771078057379,0.63611731,2073.7,2072.8,0.40934245]
[1771078057611,0.63611731,2073.7,2073.0,0.40693567]
[1771078057612,0.0011,2073.7,2073.0,0.40693567]
[1771078057912,1.20667821,2073.7,2073.0,0.40693567]
[1771078058615,0.0011,2073.7,2073.1,1.20592349]
[1771078060394,0.0011,2073.7,2073.2,0.39975273]
[1771078060715,0.0011,2073.7,2073.3,1.20580716]
[1771078063118,0.0011,2073.7,2073.3,1.60080128]
[1771078064816,1.56329267,2074.0,2073.4,0.39026111]
[1771078065034,0.0011,2074.6,2073.8,0.39026111]
[1771078065323,0.0011,2074.6,2074.0,17.443]
[1771078065527,0.0011,2074.6,2074.0,17.84311757]
[1771078065701,0.0011,2074.6,2074.0,0.40011757]
[1771078066585,0.0011,2074.6,2074.1,1.20534207]
[1771078069429,0.0011,2074.6,2074.0,4.82157549]
[1771078070294,0.0011,2074.6,2074.0,6.52457549]
[1771078072201,0.0011,2074.6,2074.0,6.57279148]
[1771078072693,0.65323252,2074.6,2074.0,4.86979148]
[1771078072893,0.65323252,2074.6,2074.0,1.20540019]
[1771078074620,0.0011,2074.6,2074.0,1.20540019]
[1771078074807,0.0011,2074.6,2074.0,1.58429958]
[1771078075129,0.0011,2074.6,2074.1,0.04821134]
[1771078075826,0.0011,2074.6,2074.1,0.4247835]
[1771078077223,0.0011,2074.6,2074.2,1.20528396]
[1771078077421,0.0011,2074.6,2074.2,1.57953489]
[1771078079426,0.0011,2074.6,2074.2,1.20528396]
[1771078080040,0.65213252,2074.5,2073.5,0.868]
[1771078080340,0.65213252,2074.5,2073.5,12.3432]
[1771078081204,0.65213252,2074.5,2073.6,16.897]
[1771078081520,0.65213252,2074.5,2073.7,12.3432]
[1771078081712,0.84140013,2074.3,2073.6,13.54879156]
[1771078081912,0.84140013,2074.3,2073.6,1.20559156]
[1771078083600,1.20528396,2074.2,2073.6,1.20559156]
[1771078084025,1.20528396,2074.2,2073.7,12.3432]
[1771078084938,0.84140013,2074.3,2073.7,12.3432]
[1771078085105,2.04663298,2074.3,2073.7,12.3432]
[1771078085715,2.04663298,2074.3,2073.7,13.54874528]
[1771078086533,2.04663298,2074.3,2073.7,1.20554528]
[1771078087969,2.04663298,2074.3,2073.6,2.91558718]
[1771078088132,2.04663298,2074.3,2073.7,12.3432]
[1771078088541,0.84140013,2074.3,2073.7,12.3432]
[1771078088729,0.84140013,2074.5,2073.7,12.3432]
[1771078089119,0.84140013,2074.5,2073.8,0.70912525]
[1771078089366,1.25440114,2074.6,2073.9,12.3432]
[1771078089579,2.09580127,2074.6,2073.9,12.3432]
[1771078090282,0.84140013,2074.5,2073.6,1.71]
[1771078090424,0.84140013,2074.2,2073.6,12.0957685]
[1771078090628,0.84140013,2074.0,2073.3,0.001]
[1771078090843,0.84140013,2074.0,2073.4,12.0957685]
[1771078091023,0.84140013,2073.8,2073.4,12.0957685]
[1771078091219,0.84140013,2073.8,2073.1,0.495]
[1771078091536,0.84140013,2073.8,2073.1,0.001]
[1771078092550,2.0469747,2073.7,2073.1,0.001]
[1771078093457,2.04688515,2073.9,2073.1,0.001]
[1771078094040,0.84140013,2073.8,2073.1,0.001]
[1771078094824,0.84140013,2073.6,2073.1,0.001]
[1771078095753,0.84140013,2073.6,2072.8,0.001]
[1771078096953,0.84140013,2073.4,2072.8,0.001]
[1771078099261,1.20580716,2073.3,2072.8,0.001]
[1771078100372,2.04720729,2073.3,2072.8,0.001]
[1771078100862,1.20578583,2073.4,2072.8,0.001]
[1771078101081,0.84140013,2073.3,2072.6,0.001]
[1771078101227,0.84140013,2073.1,2072.6,0.001]
[1771078102138,0.84140013,2073.1,2072.4,0.001]
[1771078103134,0.84140013,2072.9,2072.4,0.001]
[1771078104360,1.20598166,2073.0,2072.4,0.001]
[1771078105237,2.04738179,2073.0,2072.4,0.001]
[1771078106168,0.04821134,2072.9,2072.4,0.001]
[1771078106339,2.04738179,2073.0,2072.4,0.001]
[1771078108775,1.25416887,2073.1,2072.5,0.80964807]
[1771078108976,1.482,2073.2,2072.6,0.80964807]
[1771078109569,2.68786947,2073.2,2072.6,2.01582888]
[1771078111795,1.482,2073.2,2072.6,2.01582888]
[1771078112973,0.868,2073.3,2072.8,30.0]
[1771078113173,1.25497741,2073.6,2072.9,0.9366261]
[1771078114070,0.90148525,2073.5,2072.5,2.14289871]
[1771078114259,0.90148525,2073.5,2072.6,0.9366261]
[1771078114260,0.04821134,2073.4,2072.6,0.9366261]
[1771078114477,0.04821134,2073.4,2072.7,30.0]
[1771078114770,1.25494539,2073.6,2072.8,0.9366261]
[1771078115075,1.25494539,2073.6,2072.4,4.82615337]
[1771078115076,0.90148525,2073.5,2072.4,1.20732833]
[1771078115271,0.90148525,2073.3,2072.4,1.20732833]
[1771078115442,0.94969659,2073.2,2072.4,1.20732833]
[1771078116279,0.04821134,2073.2,2072.5,0.9366261]
[1771078116482,1.2058698,2073.2,2072.5,0.9366261]
[1771078118482,0.94969659,2073.1,2072.4,1.20732833]
[1771078120883,1.20598166,2073.0,2072.4,0.001]
[1771078122284,0.98641673,2072.9,2072.4,0.001]
[1771078122977,1.20609803,2072.8,2072.4,0.001]
[1771078123198,0.93820539,2072.7,2072.4,0.001]
[1771078125999,1.20621441,2072.6,2072.4,0.001]
[1771078126403,1.20616474,2072.7,2072.4,0.001]
[1771078130484,2.74234869,2072.8,2072.4,0.001]
[1771078131076,1.488,2072.8,2072.4,0.001]
[1771078131276,2.69410475,2072.8,2072.4,0.001]
[1771078131478,1.488,2072.8,2072.4,0.001]
[1771078133090,1.488,2072.8,2072.4,2.11884027]
[1771078133292,0.98641673,2073.2,2072.4,2.11884027]
[1771078133614,1.492,2073.1,2072.5,0.91150945]
[1771078135487,1.492,2073.1,2072.6,2.11047949]
[1771078136790,2.69793717,2073.1,2072.6,2.11047949]
[1771078138486,2.69793717,2073.1,2072.6,1.20621441]
[1771078138686,2.69793717,2073.1,2072.5,1.20624647]
[1771078140528,0.868,2073.3,2072.6,0.88276782]
[1771078140831,3.01201971,2073.3,2072.6,0.88276782]
[1771078141288,2.14401971,2073.3,2072.6,0.88276782]
[1771078141986,0.89809279,2073.2,2072.5,1.20624647]
[1771078142819,1.20592349,2073.1,2072.5,0.86325225]
[1771078143883,2.10400273,2073.2,2072.5,0.86325225]
[1771078145016,1.25412128,2073.2,2072.6,1.20621441]
[1771078145319,1.20590994,2073.2,2072.7,0.86325225]
[1771078145499,1.20590994,2073.2,2072.6,1.20621441]
[1771078146833,0.84988145,2073.1,2072.5,1.20623606]
[1771078146995,0.84988145,2073.1,2072.4,4.82627031]
[1771078146996,2.05584641,2073.1,2072.4,0.8626189]
[1771078147322,0.04821134,2073.2,2072.4,0.8626189]
[1771078147526,4.82301828,2073.4,2072.4,0.8626189]
[1771078147720,4.82301828,2073.4,2072.5,5.70606201]
[1771078147913,3.54971227,2073.5,2072.6,0.85812759]
[1771078148106,3.59792361,2073.5,2072.6,0.85812759]
[1771078149800,0.0011,2073.5,2073.0,0.85117335]
[1771078152220,0.0011,2073.5,2073.2,0.84425678]
[1771078154229,0.0011,2073.5,2073.3,1.20580716]
[1771078154399,0.0011,2073.5,2073.3,2.04318479]
[1771078155121,0.0011,2073.6,2073.3,2.04318479]
[1771078159412,0.0011,2073.6,2073.4,0.82037456]
[1771078159593,0.0011,2074.0,2073.5,0.81699492]
[1771078161226,0.0011,2074.0,2073.6,1.20563271]
[1771078162424,0.0011,2074.0,2073.7,0.81036121]
[1771078163211,0.0011,2074.0,2073.8,1.20551644]
[1771078165506,0.0011,2074.0,2073.8,2.00252142]
[1771078166426,1.486,2074.5,2073.9,0.79700498]
[1771078167735,1.486,2074.5,2074.0,1.20540019]
[1771078168627,0.85098145,2074.6,2074.0,1.99258036]
[1771078168834,0.0011,2074.6,2074.0,1.99258036]
[1771078169007,0.0011,2074.6,2074.0,7.68848893]
[1771078169206,0.0011,2074.6,2074.0,9.38848893]
[1771078170742,0.85098145,2074.6,2074.0,2.90540019]
[1771078171606,0.85098145,2074.6,2074.0,1.20540019]
[1771078171810,0.87507359,2074.5,2074.0,1.20540019]
[1771078173849,0.0011,2074.6,2074.0,1.20540019]
[1771078174055,0.0011,2074.6,2074.0,1.97621761]
[1771078176719,0.0011,2074.6,2074.1,0.76110499]
[1771078177519,0.0011,2074.8,2074.3,0.76110499]
[1771078178057,0.0011,2074.8,2074.4,0.75788486]
[1771078178225,0.0011,2074.8,2074.5,1.20510966]
[1771078186267,0.0011,2074.8,2074.4,4.82048703]
[1771078188559,0.0011,2074.8,2074.3,2.91118629]
[1771078188560,0.8371977,2074.8,2074.3,2.91118629]
[1771078188764,0.88540904,2074.8,2073.8,4.82204559]
[1771078188929,0.8360977,2074.7,2073.8,6.54404559]
[1771078190753,0.8360977,2074.5,2073.8,2.92751644]
[1771078193163,0.8360977,2074.5,2073.8,3.63815128]
[1771078195060,0.8360977,2074.4,2073.8,3.63815128]
[1771078197361,0.8360977,2074.3,2073.8,2.92749702]
[1771078197565,0.8360977,2074.2,2073.5,0.001]
[1771078197744,0.8360977,2074.2,2073.5,1.20669014]
[1771078198860,0.8360977,2074.2,2073.6,0.6922753]
[1771078199341,0.8360977,2074.2,2073.7,1.20557457]
[1771078200174,0.88430904,2074.5,2073.8,0.68923876]
[1771078200355,0.8360977,2074.4,2073.7,1.20557457]
[1771078201677,0.7753909,2074.7,2074.0,9.05409822]
[1771078201896,0.0011,2074.8,2074.1,0.68318965]
[1771078202378,0.0011,2074.8,2074.3,0.68318965]
[1771078203653,0.0011,2074.8,2074.4,1.20516775]
[1771078204357,0.7764909,2074.8,2073.8,5.69590857]
[1771078204681,0.7753909,2074.7,2073.9,2.93245831]
[1771078204884,0.7753909,2074.7,2073.9,3.60663457]
[1771078205082,0.7753909,2074.5,2073.8,1.20550591]
[1771078205282,0.7753909,2074.3,2073.8,1.20550591]
[1771078207769,0.82360224,2074.5,2073.8,1.20550591]
[1771078207971,2.02872312,2074.5,2073.8,1.20550591]
[1771078208165,0.7753909,2074.4,2073.8,1.20550591]
[1771078208563,2.028687,2074.6,2073.8,1.87074017]
[1771078208768,0.82360224,2074.6,2073.9,0.66226934]
[1771078209288,0.7753909,2074.6,2073.9,0.66226934]
[1771078209860,0.7764909,2074.8,2073.9,0.66226934]
[1771078210168,1.98142718,2074.8,2074.0,1.86471245]
[1771078210683,1.98142718,2074.8,2074.0,1.20540019]
[1771078210988,1.98142718,2074.8,2074.1,0.65636299]
[1771078211283,0.7764909,2074.8,2074.1,0.65636299]
[1771078212392,1.98143022,2074.8,2074.2,1.20528396]
[1771078214056,0.7753909,2074.7,2074.2,1.20528396]
[1771078214265,0.82360224,2074.7,2074.1,1.2053129]
[1771078215163,0.7753909,2074.5,2073.8,1.20551644]
[1771078215358,0.82360224,2074.5,2073.9,1.727]
[1771078215809,0.7753909,2074.5,2073.9,1.727]
[1771078218198,1.98055865,2074.4,2073.9,2.93241543]
[1771078218494,0.7753909,2074.3,2073.9,2.93241543]
[1771078218997,0.7753909,2074.7,2073.9,3.56546256]
[1771078220174,1.2542633,2074.8,2073.9,3.56546256]
[1771078220175,1.2542633,2074.8,2074.1,1.20534207]
[1771078220389,0.7753909,2074.7,2074.1,1.20534207]
[1771078222291,1.98042072,2074.7,2074.1,1.20534207]
[1771078225474,0.0011,2074.8,2074.1,1.82122199]
[1771078225674,0.04931134,2074.8,2074.2,0.61587992]
[1771078225980,2.02963896,2074.8,2074.2,0.61587992]
[1771078226493,1.98142762,2074.8,2074.2,0.61587992]
[1771078226668,0.7764909,2074.8,2074.2,0.61587992]
[1771078227889,0.7753909,2074.7,2074.3,1.20522585]
[1771078228198,0.82360224,2074.7,2074.0,1.20540019]
[1771078228914,0.82360224,2074.7,2073.9,2.93241262]
[1771078230400,0.7753909,2074.5,2073.9,2.93241262]
[1771078230700,0.82360224,2074.5,2073.9,2.93241262]
[1771078232006,1.99098564,2074.7,2074.0,0.59619029]
[1771078232396,0.78595653,2074.6,2073.9,2.93241262]
[1771078232590,0.83416787,2074.6,2073.9,2.93241262]
[1771078235479,0.78595653,2074.5,2073.9,2.93241262]
[1771078237082,0.04821134,2074.4,2073.9,2.9324562]
[1771078239411,0.04821134,2074.4,2073.5,4.82374159]
[1771078239412,0.78595653,2074.3,2073.6,18.50963271]
[1771078239598,0.78595653,2074.3,2073.6,1.20563271]
[1771078240405,0.70936534,2074.2,2073.6,1.20563271]
[1771078241705,1.96291801,2074.2,2073.5,4.82374159]
[1771078244913,0.70936534,2074.1,2073.5,4.82374159]
[1771078247320,0.70936534,2074.1,2073.5,5.37893406]
[1771078255216,0.04821134,2074.2,2073.6,0.53397256]
[1771078255420,3.38261561,2074.3,2073.6,0.53397256]
[1771078256223,2.17736534,2074.3,2073.6,0.53397256]
[1771078257624,2.17736534,2074.3,2073.7,1.20557457]
[1771078257819,1.468,2074.3,2073.8,0.52612781]
[1771078259798,1.468,2074.3,2073.9,1.20545831]
[1771078260525,1.468,2074.3,2074.0,0.52093168]
[1771078260897,1.468,2074.3,2073.9,1.20545831]
[1771078261098,1.96269957,2074.5,2073.9,1.20545831]
[1771078261420,1.25333423,2074.5,2073.9,1.72380189]
[1771078262120,0.71010035,2074.4,2073.6,1.20563271]
[1771078262434,0.71010035,2074.2,2073.6,1.20563271]
[1771078262928,0.75831169,2074.1,2073.5,1.20665504]
[1771078263605,1.47,2074.2,2073.6,0.51318754]
[1771078264227,1.47,2074.2,2073.7,1.71619405]
[1771078276457,1.47,2074.2,2073.8,0.48031256]
[1771078276666,1.96452445,2074.5,2073.8,0.48031256]
[1771078277261,1.96452445,2074.5,2073.9,1.20545831]
[1771078277430,0.71010035,2074.4,2073.9,1.20545831]
[1771078279553,1.91527191,2074.4,2073.9,1.20545831]
[1771078280461,0.71010035,2074.4,2073.9,1.20545831]
[1771078280667,0.04931134,2074.5,2073.9,1.67587412]
[1771078281275,1.25442239,2074.5,2073.9,1.67587412]
[1771078281456,1.96452274,2074.5,2073.9,1.67587412]
[1771078282064,1.96452306,2074.5,2073.9,1.67587412]
[1771078294369,0.68659617,2074.4,2073.8,4.82183326]
[1771078294572,0.68659617,2074.4,2073.8,5.25839533]
[1771078296082,1.25442271,2074.5,2073.8,5.25839533]
[1771078296283,1.94101888,2074.5,2073.8,5.25839533]
[1771078298978,1.25442271,2074.5,2073.8,5.25839533]
[1771078299159,0.68659617,2074.4,2073.8,5.25839533]
[1771078299569,0.68659617,2074.2,2073.6,1.20559352]
[1771078301588,1.89189336,2074.2,2073.6,1.20559352]
[1771078302170,1.89189336,2074.2,2073.5,1.6314064]
[1771078302171,0.70062043,2074.1,2073.5,1.6314064]
[1771078302371,0.70062043,2074.1,2073.5,0.001]
[1771078303086,0.70062043,2074.0,2073.5,0.001]
[1771078303683,0.70062043,2073.8,2073.5,0.001]
[1771078304501,1.483,2073.8,2073.5,0.001]
[1771078304670,0.70062043,2073.7,2073.5,0.001]
[1771078306488,0.70062043,2073.6,2073.5,0.001]
[1771078308688,3.38917606,2073.8,2073.5,0.001]
[1771078308890,1.483,2073.8,2073.5,0.001]
[1771078309399,0.70062043,2073.7,2073.5,0.001]
[1771078311501,1.90625314,2073.6,2073.5,0.001]
[1771078312574,1.90625314,2073.6,2073.3,0.001]
[1771078313603,1.20563271,2073.6,2073.3,0.001]
[1771078313778,0.70062043,2073.5,2073.3,0.001]
[1771078314099,2.19262043,2073.5,2073.3,0.001]
[1771078314278,0.70062043,2073.4,2073.1,0.001]
[1771078316294,1.90637634,2073.4,2073.1,0.001]
[1771078316687,1.95458768,2073.4,2073.1,0.001]
[1771078318509,0.04821134,2073.4,2073.1,0.001]
[1771078321513,1.25396288,2073.4,2073.1,0.001]
[1771078322413,0.04821134,2073.4,2073.1,0.001]
[1771078324407,1.25397134,2073.4,2073.1,0.001]
[1771078325507,1.8947157,2073.4,2073.1,0.001]
[1771078326337,1.25397134,2073.4,2073.1,0.001]
[1771078330325,2.7459505,2073.5,2073.1,0.001]
[1771078331009,3.38669486,2073.5,2073.1,0.001]
[1771078335130,3.33848352,2073.5,2073.1,0.001]
[1771078336396,2.69773916,2073.5,2073.1,0.001]
[1771078338035,2.7459505,2073.5,2073.1,0.001]
[1771078339717,1.54021134,2073.5,2073.1,0.33661993]
[1771078339897,2.74590477,2073.5,2073.1,0.33661993]
[1771078340105,2.74590477,2073.5,2073.1,0.001]
[1771078342796,1.54021134,2073.5,2073.2,0.32717355]
[1771078343004,1.492,2073.5,2073.2,0.32717355]
[1771078343198,1.492,2073.5,2073.1,1.20692133]
[1771078344428,1.492,2073.5,2073.1,1.53199631]
[1771078345324,0.04821134,2073.6,2073.1,1.53199631]
[1771078345721,0.04821134,2073.6,2073.2,0.32298159]
[1771078345908,1.56431134,2073.7,2073.2,0.32298159]
[1771078346621,2.76989213,2073.7,2073.2,0.32298159]
[1771078350315,2.76989213,2073.7,2073.2,1.5288158]
[1771078351545,1.56431134,2073.7,2073.2,1.5288158]
[1771078355827,1.5161,2073.7,2073.3,0.34582482]
[1771078357841,1.5161,2073.7,2073.1,5.1662096]
[1771078358036,1.5161,2073.7,2073.1,5.16407346]
[1771078358338,1.5161,2073.7,2073.2,0.33940045]
[1771078359854,1.5161,2073.7,2073.3,1.20580716]
[1771078360453,2.7216834,2073.7,2073.2,1.54522832]
[1771078360655,1.5161,2073.7,2073.2,1.54522832]
[1771078362622,1.5161,2073.7,2073.2,1.20582787]
[1771078362817,1.5161,2073.7,2073.2,1.53673649]
[1771078364122,1.5161,2073.7,2073.3,0.32669417]
[1771078367675,1.5161,2073.7,2073.4,1.20574901]
[1771078367861,0.0011,2073.7,2073.4,1.20574901]
[1771078373714,0.0011,2073.7,2073.1,1.51490816]
[1771078374087,0.0011,2073.7,2073.2,0.30593134]
[1771078376810,0.0011,2073.7,2073.3,1.20580716]
[1771078380407,0.0011,2073.7,2073.2,1.51175007]
[1771078380799,0.6660614,2073.7,2073.1,0.001]
[1771078380995,1.20569086,2073.5,2073.1,0.001]
[1771078381199,0.6649614,2073.4,2073.1,0.001]
[1771078383789,3.3608434,2073.6,2073.1,0.001]
[1771078384423,0.58296125,2073.5,2073.1,0.001]
[1771078385964,1.57221134,2073.6,2073.1,0.28268043]
[1771078386235,0.0011,2073.7,2073.1,0.28268043]
[1771078388323,0.0011,2073.7,2073.2,1.48357273]
[1771078392252,0.0011,2073.7,2073.3,0.26981927]
[1771078392417,0.0011,2073.8,2073.4,0.26981927]
[1771078393017,0.0011,2073.8,2073.2,7.1770062]
[1771078394325,0.63227259,2073.8,2073.2,1.20586532]
[1771078394652,0.58406125,2073.8,2073.2,2.96586532]
[1771078396039,0.0011,2073.8,2073.3,0.2620402]
[1771078396445,0.0011,2073.8,2073.4,1.20574901]
[1771078398047,0.0011,2073.8,2073.3,4.82299604]
[1771078399450,0.0011,2073.8,2073.3,5.07922682]
[1771078408963,0.0011,2073.8,2073.4,0.23716803]
[1771078410468,0.0011,2073.8,2073.5,1.20569086]
[1771078410640,0.0011,2073.8,2073.5,1.4409778]
[1771078411048,0.0011,2073.9,2073.5,1.4409778]
[1771078411049,0.0011,2074.0,2073.7,0.23341039]
[1771078413352,0.0011,2074.1,2073.8,1.20551644]
[1771078415737,0.0011,2074.1,2073.7,4.82206577]
[1771078415968,1.20517066,2074.4,2073.7,4.82206577]
[1771078416180,0.55520015,2074.3,2073.7,4.82206577]
[1771078416868,0.55630015,2074.3,2073.7,4.82206577]
[1771078418064,0.55630015,2074.3,2073.7,5.38341224]
[1771078418768,0.0011,2074.3,2073.8,0.56134647]
[1771078419573,0.0011,2074.3,2073.9,8.04412425]
[1771078420073,0.0011,2074.3,2073.9,3.54876442]
[1771078420268,0.55630015,2074.3,2073.8,1.783]
[1771078424870,0.55630015,2074.3,2073.9,1.20545831]
[1771078427593,0.0011,2074.3,2073.9,1.20545831]
[1771078427789,0.0011,2074.3,2073.9,1.81872952]
[1771078430881,0.56047782,2074.3,2073.9,1.20545831]
[1771078431059,0.56047782,2074.3,2073.8,2.98847176]
[1771078431487,0.56047782,2074.3,2073.8,1.20547176]
[1771078431784,0.50937782,2074.1,2073.6,6.61248101]
[1771078431967,0.50937782,2074.1,2073.6,2.99563271]
[1771078433785,0.04821134,2074.2,2073.6,2.99563271]
[1771078433951,0.56047782,2074.3,2073.7,0.61327121]
[1771078434157,0.0011,2074.3,2073.7,0.61327121]
[1771078436371,0.0011,2074.3,2073.8,1.20551644]
[1771078437098,0.0011,2074.3,2073.8,1.81878765]
[1771078440757,0.0011,2074.3,2073.9,0.61327121]
[1771078441863,0.0011,2074.3,2074.0,1.20540019]
[1771078443510,0.5912014,2074.3,2074.0,1.20540019]
[1771078444770,0.5901014,2074.2,2073.8,1.20547482]
[1771078444994,0.5901014,2074.2,2073.7,1.20552835]
[1771078452206,0.0011,2074.3,2073.7,1.78132956]
[1771078452673,0.0011,2074.3,2073.8,0.57580121]
[1771078454175,0.0011,2074.3,2073.7,1.20552835]
[1771078454378,0.5912014,2074.3,2073.7,1.20552835]
[1771078454908,0.5912014,2074.3,2073.8,1.804]
[1771078456392,0.5912014,2074.3,2073.9,1.20545831]
[1771078458213,0.63941274,2074.3,2073.9,1.20545831]
[1771078458426,0.5912014,2074.3,2073.9,1.20545831]
[1771078460603,0.0011,2074.3,2073.9,1.20545831]
[1771078460911,0.0011,2074.3,2073.9,1.78125952]
[1771078466029,0.0011,2074.5,2073.9,1.78125952]
[1771078466926,0.0011,2074.5,2074.1,1.77146318]
[1771078467933,0.0011,2074.5,2074.2,0.56612111]
[1771078469133,0.0011,2074.6,2074.3,1.77134696]
[1771078469327,0.0011,2074.7,2074.3,1.77134696]
[1771078469510,0.0011,2074.7,2073.6,1.20563271]
[1771078469511,0.54982165,2074.4,2073.6,1.20563271]
[1771078469836,0.54982165,2074.2,2073.5,1.20664707]
[1771078470916,0.54982165,2074.2,2073.6,0.24576656]
[1771078472632,1.75511057,2074.2,2073.6,0.24576656]
[1771078472837,0.5569034,2074.1,2073.5,0.001]
[1771078473037,0.5569034,2074.0,2073.5,3.02065312]
[1771078473734,0.5569034,2074.0,2073.5,1.815]
[1771078473939,0.5569034,2074.0,2073.5,0.001]
[1771078474931,0.5569034,2073.8,2073.5,0.001]
[1771078475837,0.5569034,2074.0,2073.5,0.001]
[1771078477344,0.04821134,2074.1,2073.5,0.04093975]
[1771078478133,0.60511474,2074.2,2073.5,0.04093975]
[1771078480447,1.81043803,2074.2,2073.6,1.20563271]
[1771078483531,0.60511474,2074.2,2073.6,1.20563271]
[1771078483736,0.60511474,2074.2,2073.6,1.24557246]
[1771078487327,0.04821134,2074.3,2073.7,0.03993975]
[1771078487734,1.74526453,2074.4,2073.7,0.03993975]
[1771078488839,1.74526453,2074.4,2073.8,1.20551644]
[1771078491347,0.5400599,2074.4,2073.8,1.20551644]
[1771078491675,1.69703145,2074.4,2073.8,1.20551644]
[1771078492471,0.49184856,2074.2,2073.6,1.20560966]
[1771078492672,0.49184856,2074.2,2073.6,3.02160966]
[1771078493254,1.6971448,2074.2,2073.6,3.06154941]
[1771078495782,0.49184856,2074.1,2073.5,0.001]
[1771078495955,0.49184856,2074.1,2073.5,3.0236486]
[1771078495956,0.49184856,2074.0,2073.5,3.0236486]
[1771078499472,0.49184856,2074.0,2073.5,3.0256486]
[1771078501009,0.04821134,2074.2,2073.6,0.03993975]
[1771078501172,0.48092391,2074.2,2073.5,3.0256486]
[1771078501604,0.48092391,2074.2,2073.5,1.24658835]
[1771078501803,0.48092391,2074.2,2073.6,1.85893975]
[1771078503897,1.68623098,2074.2,2073.7,1.20557457]
[1771078505296,0.52913525,2074.4,2073.8,0.03993975]
[1771078505469,1.2052263,2074.3,2073.8,0.03993975]
[1771078506566,1.2052263,2074.3,2073.8,1.24543169]
[1771078508006,1.73432146,2074.4,2073.8,1.24543169]
[1771078510599,1.25336145,2074.5,2073.9,0.03993975]
[1771078510907,0.0011,2074.6,2074.1,0.03993975]
[1771078513412,0.0011,2074.6,2074.3,0.03993975]
[1771078514610,0.0011,2074.7,2074.3,0.03993975]
[1771078514980,0.0011,2074.7,2074.4,1.821]
[1771078515181,0.0011,2074.7,2074.4,3.06605403]
[1771078516006,0.0011,2074.7,2074.2,1.20524904]
[1771078516308,0.48202391,2074.7,2074.3,1.821]
[1771078516499,0.0011,2074.7,2074.3,1.821]
[1771078516702,0.0011,2074.7,2074.3,0.03993975]
[1771078516912,0.0011,2074.7,2074.3,1.86093975]
[1771078517405,0.0011,2074.7,2074.3,3.06613019]
[1771078518605,0.0011,2074.7,2074.4,0.03993975]
[1771078519910,0.0011,2074.7,2074.5,1.20510966]
[1771078520511,0.0011,2074.7,2074.5,1.24504941]
[1771078520801,0.0011,2074.9,2074.6,0.03993975]
[1771078521212,0.0011,2074.9,2074.7,1.824]
[1771078521416,0.0011,2074.9,2074.7,1.86393975]
[1771078521590,0.0011,2075.1,2074.8,0.03993975]
[1771078521792,0.0011,2075.1,2074.9,1.20487734]
[1771078522707,0.0011,2075.2,2074.9,1.24481709]
[1771078523411,0.48202391,2075.2,2074.6,4.8200865]
[1771078523604,0.48202391,2075.2,2074.9,1.826]
[1771078524002,0.48092391,2075.1,2074.5,2.07307469]
[1771078524203,0.48092391,2075.1,2074.4,1.20512534]
[1771078524516,0.48092391,2075.1,2074.5,1.826]
[1771078525620,0.0011,2075.2,2074.6,0.03993975]
[1771078526199,0.0011,2075.2,2074.7,1.20499349]
[1771078526405,0.0011,2075.2,2074.7,1.24493324]
[1771078526603,0.0011,2075.2,2074.8,0.03993975]
[1771078527018,0.0011,2075.2,2074.9,1.86493975]
[1771078527201,0.0011,2075.2,2075.0,0.03993975]
[1771078527797,0.0011,2075.2,2074.9,1.825]
[1771078528222,0.0011,2075.2,2075.0,1.20481927]
[1771078530020,0.0011,2075.2,2074.9,3.02983883]
[1771078530397,0.0011,2075.2,2074.9,1.829]
[1771078530595,0.48202391,2075.2,2074.9,1.829]
[1771078531304,0.48202391,2075.2,2074.6,3.03400887]
[1771078531499,0.48202391,2075.2,2074.6,3.07394862]
[1771078531704,0.0011,2075.2,2074.7,0.03993975]
[1771078532299,0.0011,2075.2,2074.9,0.03993975]
[1771078532994,0.48113012,2075.2,2074.7,1.83]
[1771078533229,0.0011,2075.2,2074.7,1.83]
[1771078533722,0.0011,2075.2,2074.8,0.03993975]
[1771078534717,0.94847649,2075.7,2075.0,0.03993975]
[1771078534921,0.81946942,2075.7,2075.3,0.03993975]
[1771078535140,0.48003012,2076.2,2075.4,0.03993975]
[1771078535308,0.45188301,2076.4,2075.6,0.48865747]
[1771078536416,0.0011,2075.7,2075.6,30.48865747]
[1771078536613,0.45188301,2076.4,2075.7,0.48865747]
[1771078536810,0.0011,2076.1,2075.7,0.48865747]
[1771078537212,2.07095605,2076.5,2075.7,0.48865747]
[1771078537624,0.867,2076.5,2075.7,0.48865747]
[1771078537811,2.07096187,2076.5,2075.7,0.48865747]
[1771078538012,0.867,2076.5,2075.7,0.48865747]
[1771078538414,4.81533242,2076.7,2075.6,4.81765187]
[1771078538415,2.07523702,2076.8,2075.9,0.48865747]
[1771078538856,2.07523702,2076.8,2076.0,1.20423892]
[1771078539005,0.45188301,2076.7,2076.0,1.69289639]
[1771078539208,0.45188301,2076.7,2076.0,1.20423892]
[1771078539429,0.50009435,2076.7,2076.0,1.20423892]
[1771078540442,0.50009435,2076.7,2075.9,3.03225432]
[1771078540649,0.50009435,2076.7,2075.8,1.828]
[1771078541046,0.4602333,2076.5,2075.6,1.65853663]
[1771078541206,0.50844464,2076.5,2075.7,1.828]
[1771078542554,0.50844464,2076.5,2075.5,3.03151339]
[1771078542914,0.4602333,2076.3,2075.5,3.03151339]
[1771078543121,0.50844464,2076.3,2075.5,3.03151339]
[1771078544051,0.50844464,2076.3,2075.6,0.45409782]
[1771078544225,0.4602333,2076.3,2075.6,0.45409782]
[1771078544416,4.81585094,2076.6,2075.8,0.45409782]
[1771078544417,1.2038919,2076.6,2075.8,0.45409782]
[1771078544611,0.4602333,2076.5,2075.6,30.0]
[1771078544843,0.4602333,2076.5,2075.7,1.826]
[1771078545028,0.4602333,2076.3,2075.4,1.65864694]
[1771078545244,0.4602333,2076.1,2075.2,1.65879762]
[1771078545554,0.4602333,2076.1,2074.8,4.81953436]
[1771078545555,0.4602333,2075.9,2074.8,0.45409782]
[1771078545725,0.4602333,2075.9,2074.8,1.128]
[1771078545919,0.4602333,2075.9,2074.8,1.58209782]
[1771078546251,0.4602333,2075.9,2075.0,30.0]
[1771078546424,0.4602333,2076.2,2075.1,0.45409782]
[1771078546628,0.50844464,2076.2,2075.3,0.45409782]
[1771078547148,0.4602333,2076.2,2075.5,0.45409782]
[1771078547318,1.25230406,2076.3,2075.5,0.45409782]
[1771078547862,0.4602333,2076.2,2075.4,1.20458706]
[1771078548018,0.4602333,2076.2,2075.4,3.02958706]